{"text_format":"3","workbook":"xlsx","n_sheets":16,"sheets":["Index","Instructions","00-Submission Guidelines","01-Gate Keepers","02-Questionnaire","03-Technical Schedules","Scoring","Lists","04-Offered Cells","05-Temp Derating Factors","06-Ancillary Equipment","Photos","07-Track Record","08-Type Testing","09-Customer Details","10-Overall Deviation List"],"not_rendered":{"images":4,"external_links":3,"defined_names":9},"read":"whole","date_system":"1900"}

{"sheet":"Index","index":0,"n_rows":19,"n_cols":3,"rows_kept":19,"merged":[[0,0,0,2],[1,0,1,1],[2,0,2,2],[3,0,3,2],[4,0,4,2]]}
["VENTED LEAD ACID BATTERIES DISTRIBUTION NATIONAL CONTRACT"]
["Tenderer Name:"]
["Document Reference #: 240-56360034_1"]
["Document Title: Technical Schedule A&B for 240-56360034, Rev 3, STATIONARY VENTED LEAD ACID BATTERIES STANDARD"]
["Revision 1"]
[]
["#","Worksheet Tab Title","Description / Instructions"]
[1,"Instructions","Technical Schedules completion instructions."]
[2,"00-Submission Guidelines","Guidelines to aid in the tender evaluation process for both tenderer and Technical Evaluation Team. It is strongly encouraged for tenderers to comply with the set of guidelines."]
[3,"01 - Gatekeepers","Mandatory requirements as per 240-95240645, Technical Evaluation Criteria for Standby Batteries"]
[4,"02-Questionnaire","Tenderer and Original Equipment Manufacturer information"]
[5,"03-Technical Schedules","Technical requirements"]
[6,"04-Offered Cells","Information of the offered equipment"]
[7,"05-Temp Derating Factors","Temperature derating factors of the rated capacity"]
[8,"06-Ancillary Equipment","Information of the Maintenance and Safety equipment"]
[9,"07-Track Record","Track record of the offered equipment"]
[10,"08-Type Testing","Type test information of the offered equipment"]
[11,"09-Customer Details","Information of the customers that use the offered equipment"]
[12,"10-Overall Deviation List","List any deviations taken."]

{"sheet":"Instructions","index":1,"n_rows":18,"n_cols":2,"rows_kept":18,"merged":[[0,0,0,1],[1,0,1,1],[2,0,2,1],[3,0,3,1],[4,0,4,1],[7,0,7,1]]}
[{"$f":"Index!A1","v":"VENTED LEAD ACID BATTERIES DISTRIBUTION NATIONAL CONTRACT"}]
["Click here to go back to \"Worksheets Index\""]
[{"$f":"Index!A3","v":"Document Reference #: 240-56360034_1"}]
[{"$f":"Index!A4","v":"Document Title: Technical Schedule A&B for 240-56360034, Rev 3, STATIONARY VENTED LEAD ACID BATTERIES STANDARD"}]
[{"$f":"Index!A5","v":"Revision 1"}]
[]
["#","INSTRUCTIONS"]
["A - EVALUATION CRITERIA"]
[1,"The Tenderer shall respond to ALL clauses as stated on the Technical Schedules Worksheet/s. \nComplete all Light Green shaded areas with the relevant requested information. Where the colour shading is not shown, complete the accessible cells."]
[2,"Note that the requirements stated in Technical Schedules are not necessarily verbatim clause/s as per 240-56360034, Rev 3, STATIONARY VENTED LEAD ACID BATTERIES STANDARD. Therefore it is OBLIGATORY on the Tenderer to review the applicable clauses in 240-56360034, Rev 3, STATIONARY VENTED LEAD ACID BATTERIES STANDARD, in order to provide an informed response."]
[3,"It is encumbent of the Tenderer to make sure that each clause is understood fully and an appropriate response provided.\nClause-for-clause compliance confirmation is not required, however there are instances where information need to be provided by the Tenderer.\nThe Tenderer shall further indicate the number of Devations taken.\nThe Tenderer shall list the Deviations taken on the document specific deviation worksheet or if not available, use Overall Deviation List Worksheet. Reasons for deviations as well as alternatives shall be clearly stated. The applicable document reference number and title shall be stated with the exact clause and deviation stated."]
[4,"When completing the Schedule B and Reference Section, the Tenderer is requested to take cognisance of the following:\nIt is expected of the Tenderer to state clearly, for each clause that requires a statement of compliance in the Schedule B, with one of the following options:\na) Comply - Confirmation of FULL compliance to all clauses of the applicable Section of the Technical Standard. NO deviations.\nb) Partially Comply - Confirmation of PARTIAL Compliance and that FULL Compliance is not possible. Deviations taken. Non-compliances also possible.\nc) Do Not Comply - Confirmation of Non-compliance to ALL requirements in Section.\nA drop down list with these options is provided in Schedule B for this purpose. ALL dropdowns shall show a selection, where applicable."]
[5,"Where supporting documentation is requested e.g. “Comply with Reference”, the Tenderer shall provide a hyperlink to the supporting documentation in the “Reference / Statement (Supporting Evidence)” column. If the supporting evidence relates to a paragraph, graph, table or subset of a document, then the exact location in the relevant document shall be indicated e.g. Chapter, page number and the applicable section framed with a red border. Internet links are not acceptable."]
[6,"Where supporting documentation is NOT requested, the Tenderer shall state the level of compliance which shall serve as a confirmation of intended compliance at a later stage (post contract award) of the project."]
[7,"All graphs and tables shall be properly labelled and associated with a detailed explanation of how it relates to the requirement."]
[8,"All documents (incl. offers and site-specific documents) must be text searchable. If such documents are signed/scanned or made not searchable for any reason, a searchable version must also be included."]
[9,"Test certificates issued by an accredited, 3rd party test laboratory is acceptable as a minimum. "]
[10,"In instances where the offered equipment / solution deviates from the required standard/design, the Tenderer shall take deviations and complete the Overall Deviation List  indicating clearly the proposed deviation from the requirement and the implications (pros and cons). A comparison table shall be provided clearly indicating the differences of test outcomes, conducted tests, features, capabilities, etc. compared to the items of the required standard."]

{"sheet":"00-Submission Guidelines","index":2,"n_rows":16,"n_cols":5,"rows_kept":16,"merged":[[0,0,0,4],[1,0,1,4],[2,0,2,4],[3,1,3,4],[4,1,4,4],[5,1,5,4],[6,1,6,4],[7,1,7,4],[8,1,8,4],[9,1,9,4],[10,1,10,4],[11,1,11,4],[12,1,12,4]]}
[{"$f":"Index!A1","v":"VENTED LEAD ACID BATTERIES DISTRIBUTION NATIONAL CONTRACT"}]
["Click here to go back to \"Worksheets Index\""]
["Submission Guidelines"]
[1," Answers shall be concise and sufficiently detailed to give the Technical Evaluation Team (TET) a clear understanding of the answer. Unclear and insufficiently detailed answers could result in items being ambiguous and misinterpreted and could result in an unfavourable score."]
[2," Arrange the folders and subfolders into a well organised and structured hierarchy making them logical and sensible to navigate."]
[3,"Name the files that constitute the electronic returnables appropriately based on the content of the document or file."]
[4,"Have returnable digital PDF documents searchable as far as possible. This is preferred to scanned documents that cannot be searched."]
[5,"Have returnable digital PDF documents and include a table of contents as far as possible."]
[6,"The supporting documents may be Datasheets, Technical Drawings, Brochures, Technical Manuals, Type Test Certificates, Test reports, video clips, etc. "]
[7,"The Technical Schedules excel documents must be provided in duplicate with the name of the duplicate being, the filename with the words, “- Copy” appended. (In Windows a copy and paste into the same directory will automatically create this duplicate file with the correct name)."]
[8,"The supporting evidence shall be filed under the appropriate folders as per the folder structure. If an obvious folder is not available, then the document shall be filed under the 12-Other folder."]
[9,"Submit technical drawings and photos of Battery Stands and Battery Connectors under the 05-Offered Equipment folder to demonstrate capability to comply with the requirements."]
[10,"Example of how a deviation shall be recorded."]
["Item #","Document Reference #","Document Title","Clause #","Proposed Deviation"]
[1,"240-139687256","BATTERY ENERGY STORAGE SYSTEMS FOR GRID-SCALE APPLICATIONS","3.2.2 a)","The BESS comprise of an assembly of separate cabinets which are integrated at site."]
[2,"240-139687256","BATTERY ENERGY STORAGE SYSTEMS FOR GRID-SCALE APPLICATIONS","3.10.1","The performance as required by UL 1765, BESS Test Procedure, Section 2.1, clause 2.1 a) is not achievable. The offered system complies with …."]

{"sheet":"01-Gate Keepers","index":3,"n_rows":8,"n_cols":8,"rows_kept":8,"merged":[[0,0,0,5],[2,0,3,0],[2,1,3,1],[2,2,3,2],[2,3,3,3],[2,4,2,5],[2,6,2,7]]}
["Technical Gatekeepers as per 240-95240645, Technical Evaluation Criteria for Standby Batteries"]
["Note: All gatekeepers need to be \"Yes\" in order to proceed with evaluation"]
["#","Mandatory Technical Criteria Description","Comply","Reference to evidence (where applicable)","Evaluator 1",null,"Evaluator 2"]
[{"$nulls":4},"Schedule B","Comment/s","Schedule B","Comment/s"]
[1,"The tenderer shall offer the FULL Scope of the Project (Equipment and Services):\n1) Cells, Cabinets, Stands, Accessories and Ancillary Equipment\n2) Supply, Factory Acceptance Testing (FAT), Transportation, Loading and Offloading, Installation and Commissioning, Decommissioning and Disposal","(Select Option)",null,"(Select Option)",null,"(Select Option)"]
[2,"The tenderer shall submit Type Test Certificates and Type Test Reports for ALL the offered equipment (Cells, Batteries). SANS 60896-11","(Select Option)",null,"(Select Option)",null,"(Select Option)"]
[3,"Tenderer has submitted an OEM letter meeting the requirements as listed in Section 3.2.1.2.","(Select Option)",null,"(Select Option)",null,"(Select Option)"]
[4,"The tenderer has a local (South African) office and workshop.","(Select Option)",null,"(Select Option)",null,"(Select Option)"]

{"sheet":"02-Questionnaire","index":4,"n_rows":50,"n_cols":4,"rows_kept":50,"merged":[[7,0,8,0],[7,3,8,3],[9,0,10,0],[9,3,10,3],[11,0,12,0],[11,3,12,3],[16,0,21,0],[35,0,36,0],[35,3,36,3],[37,0,38,0],[37,3,38,3],[39,0,40,0],[39,3,40,3]]}
[null,"Question","Response","Proof to be submitted"]
["A","Tenderer"]
[1,"Company name"]
[2,"Address of Head Quarters"]
[3,"Contact details"]
[4,"Website adress"]
[5,"Company organogram",null,"Organogram"]
[6,"Does your company have ISO 9001:2008 or similar certification?",null,"Copy of Certificate"]
[null,"If yes, what is the expiration date of such certification?"]
[7,"Does your company have ISO 14001:2004 or similar certification?",null,"Copy of Certificate"]
[null,"If yes, what is the expiration date of such certification?"]
[8,"Does your company have OHSAS 18001:2007 or similar certification?",null,"Copy of Certificate"]
[null,"If yes, what is the expiration date of such certification?"]
[9,"If other certifications exist, please state them here.",null,"Copy of Certificate/s"]
[10,"Is there a formal agreement between your company and the manufacturer (OEM)?",null,"Copy of Certificate or Agreement"]
[11,"Have your staff been trained on the equipment been offered?",null,"Copy of Certificates or Agreements"]
[12,"Will your company be able to provide the following after sales support if and when required:"]
[null,"Technical support",null,"Company Organogram & CVs"]
[null,"Installation"]
[null,"Commissioning"]
[null,"Maintenance"]
[null,"De-commissioning"]
[13,"Does your company have the capability to perform local R&D?"]
[14,"Does your company have the capability to perform local faultfinding and repair?"]
[15,"What transport company will be used for deliveries?"]
[16,"Do they have the necessary licensing to operate as a dangerous goods transporter?",null,"Certificates / Dept. of Transport Lisence"]
[17,"What procedures are in place to manage field failures and ensure that these are effectively and timeously addressed.?",null,"Field Failure Management Procedure"]
[18,"What recycling procedure is place to ensure that redundant equipment is recycled in an environmentally friendly manner?",null,"Recycling Procedure & Certification"]
[]
["B","Manufacturer / OEM"]
[1,"Company name"]
[2,"Address of Head Quarters"]
[3,"Contact details"]
[4,"Website adress"]
[5,"Company organogram",null,"Organogram"]
[6,"Does your company have ISO 9001:2008 or similar certification?",null,"Copy of Certificate"]
[null,"If yes, what is the expiration date of such certification?"]
[7,"Does your company have ISO 14001:2004 or similar certification?",null,"Copy of Certificate"]
[null,"If yes, what is the expiration date of such certification?"]
[8,"Does your company have OHSAS 18001:2007 or similar certification?",null,"Copy of Certificate"]
[null,"If yes, what is the expiration date of such certification?"]
[9,"If other certifications exist, please state them here.",null,"Copy of Certificate/s"]
[10,"Where is the equipment R&D performed?"]
[11,"Where is the equipment manufactured?"]
[12,"Where will equipment be send that cannot be repaired locally?"]
[13,"What procedures are in place to manage field failures and ensure that these are effectively and timeously addressed.?",null,"Field Failure Management Procedure"]
[14,"What recycling procedure is place to ensure that redundant equipment is recycled in an environmentally friendly manner?",null,"Recycling Procedure & Certification"]
[]
["C","Contactable Customers","Response"]
[null,"Provide details of Customers that agreed to be available for equipment performance and service delivery questions (if required).","See \"09-Customer Details\""]

{"sheet":"03-Technical Schedules","index":5,"n_rows":189,"n_cols":14,"rows_kept":189,"merged":[[0,0,0,9],[2,0,2,9],[4,0,4,9],[6,0,7,0],[6,1,7,1],[6,2,7,3],[6,4,6,5],[6,6,6,7],[6,8,6,9],[6,12,7,12],[6,13,7,13],[11,0,14,0],[26,0,28,0],[26,5,28,5],[139,4,142,4],[139,5,142,5],[139,6,142,6],[139,7,142,7],[139,8,142,8],[139,9,142,9],[139,10,142,10],[139,11,142,11]]}
["TECHNICAL SCHEDULES - Flat plate (Fauré X) (2 V nominal) "]
[]
["Reference refers to the filename or document title and the page number/s and clause number in the document where the said compliance is indicated or mentioned."]
[]
["Specification: 240-56360086, Rev 3, STATIONARY VENTED NICKEL CADMIUM BATTERIES STANDARD"]
[]
["Caluse #","Description of Clause","Schedule A\n(Employer's Particular Requirement)",null,"Flat Plate",null,"Evaluator 1",null,"Evaluator 2",null,"Evaluator 1","Evaluator 2","#","Category"]
[{"$nulls":4},"Schedule B\n(Compliance)","Reference / Statement\n(Supporting Evidence)","Schedule B","Comment/s","Schedule B","Comment/s","Score","Score"]
[3,"Stationary vented lead acid batteries standard",null,null,"XXXXXXXXXXXXXXX","XXXXXXXXXXXXXXX","XXXXXXXXXXXXXXX","XXXXXXXXXXXXXXX","XXXXXXXXXXXXXXX","XXXXXXXXXXXXXXX"]
["3.1","General Requirements",null,null,"XXXXXXXXXXXXXXX","XXXXXXXXXXXXXXX","XXXXXXXXXXXXXXX","XXXXXXXXXXXXXXX","XXXXXXXXXXXXXXX","XXXXXXXXXXXXXXX"]
["a)","Scope","As specified",null,"(Select Option)",null,"(Select Option)",null,"(Select Option)",null,{"$f":"VLOOKUP(G11,ComplianceList,2,0)","v":0},{"$f":"VLOOKUP(I11,ComplianceList,2,0)","v":0},{"$f":"VLOOKUP(N11,Scoring!$B$3:$D$9,2,0)","v":1},"General requirements"]
["b)","Required cell types",null,null,"XXXXXXXXXXXXXXX","XXXXXXXXXXXXXXX","XXXXXXXXXXXXXXX","XXXXXXXXXXXXXXX","XXXXXXXXXXXXXXX","XXXXXXXXXXXXXXX"]
[null,"Flat plate (Fauré X) (2 V nominal) ","Yes",null,"(Select Option)","XXXXXXXXXXXXXXX","(Select Option)",null,"(Select Option)",null,{"$f":"VLOOKUP(G13,ComplianceList,2,0)","v":0},{"$f":"VLOOKUP(I13,ComplianceList,2,0)","v":0},{"$f":"VLOOKUP(N13,Scoring!$B$3:$D$9,2,0)","v":1},"General requirements"]
[null,"Planté plate (2 V nominal)","No",null,"(Select Option)","XXXXXXXXXXXXXXX","(Select Option)",null,"(Select Option)",null,{"$f":"VLOOKUP(G14,ComplianceList,2,0)","v":0},{"$f":"VLOOKUP(I14,ComplianceList,2,0)","v":0},{"$f":"VLOOKUP(N14,Scoring!$B$3:$D$9,2,0)","v":1},"General requirements"]
[null,"Tubular plate (2 V nominal)","No",null,"(Select Option)","XXXXXXXXXXXXXXX","(Select Option)",null,"(Select Option)",null,{"$f":"VLOOKUP(G15,ComplianceList,2,0)","v":0},{"$f":"VLOOKUP(I15,ComplianceList,2,0)","v":0},{"$f":"VLOOKUP(N15,Scoring!$B$3:$D$9,2,0)","v":1},"General requirements"]
["c)","Orders - dry charged, or wet charged state","Yes",null,"(Select Option)","XXXXXXXXXXXXXXX","(Select Option)",null,"(Select Option)",null,{"$f":"VLOOKUP(G16,ComplianceList,2,0)","v":0},{"$f":"VLOOKUP(I16,ComplianceList,2,0)","v":0},{"$f":"VLOOKUP(N16,Scoring!$B$3:$D$9,2,0)","v":1},"General requirements"]
["d)","Automated test results","Comply with Reference",null,"(Select Option)",null,"(Select Option)",null,"(Select Option)",null,0,0,{"$f":"VLOOKUP(N17,Scoring!$B$3:$D$9,2,0)","v":1},"General requirements"]
["e)","Wet charged cells","Yes - as specified",null,"(Select Option)","XXXXXXXXXXXXXXX","(Select Option)",null,"(Select Option)",null,0,0,{"$f":"VLOOKUP(N18,Scoring!$B$3:$D$9,2,0)","v":1},"General requirements"]
["f)","Dry charged cells","Yes - as specified",null,"(Select Option)","XXXXXXXXXXXXXXX","(Select Option)",null,"(Select Option)",null,0,0,{"$f":"VLOOKUP(N19,Scoring!$B$3:$D$9,2,0)","v":1},"General requirements"]
["g)","All accessories supplied","Yes - as specified",null,"(Select Option)","XXXXXXXXXXXXXXX","(Select Option)",null,"(Select Option)",null,0,0,{"$f":"VLOOKUP(N20,Scoring!$B$3:$D$9,2,0)","v":1},"General requirements"]
["h)","Supply of all additional equipment and services","Yes - as specified",null,"(Select Option)","XXXXXXXXXXXXXXX","(Select Option)",null,"(Select Option)",null,0,0,{"$f":"VLOOKUP(N21,Scoring!$B$3:$D$9,2,0)","v":1},"General requirements"]
["i)","Direct OEM communication","Yes - as specified",null,"(Select Option)","XXXXXXXXXXXXXXX","(Select Option)",null,"(Select Option)",null,0,0,{"$f":"VLOOKUP(N22,Scoring!$B$3:$D$9,2,0)","v":1},"General requirements"]
["h)","OEM letter of certification / accreditation","Yes - as specified",null,"(Select Option)",null,"(Select Option)",null,"(Select Option)",null,0,0,{"$f":"VLOOKUP(N23,Scoring!$B$3:$D$9,2,0)","v":1},"General requirements"]
["3.2","Electrical performance requirements",null,null,"XXXXXXXXXXXXXXX","XXXXXXXXXXXXXXX","XXXXXXXXXXXXXXX","XXXXXXXXXXXXXXX","XXXXXXXXXXXXXXX","XXXXXXXXXXXXXXX"]
["3.2.2","Rated Capacity",null,null,"XXXXXXXXXXXXXXX","XXXXXXXXXXXXXXX","XXXXXXXXXXXXXXX","XXXXXXXXXXXXXXX","XXXXXXXXXXXXXXX","XXXXXXXXXXXXXXX"]
["3.2.2.1","Rated capacity definition","Information",null,"XXXXXXXXXXXXXXX","XXXXXXXXXXXXXXX","XXXXXXXXXXXXXXX","XXXXXXXXXXXXXXX","XXXXXXXXXXXXXXX","XXXXXXXXXXXXXXX"]
["3.2.2.2","Reference temperature",25,"°C","(Select Option)",null,"(Select Option)",null,"(Select Option)",null,{"$f":"VLOOKUP(G27,ComplianceList,2,0)","v":0},{"$f":"VLOOKUP(I27,ComplianceList,2,0)","v":0},{"$f":"VLOOKUP(N27,Scoring!$B$3:$D$9,2,0)","v":2},"Electrical performance requirements"]
[null,"Discharge period",10,"h","(Select Option)",null,"(Select Option)",null,"(Select Option)",null,{"$f":"VLOOKUP(G28,ComplianceList,2,0)","v":0},{"$f":"VLOOKUP(I28,ComplianceList,2,0)","v":0},{"$f":"VLOOKUP(N28,Scoring!$B$3:$D$9,2,0)","v":2},"Electrical performance requirements"]
[null,"End-of-discharge voltage per cell","1.80","V","(Select Option)",null,"(Select Option)",null,"(Select Option)",null,{"$f":"VLOOKUP(G29,ComplianceList,2,0)","v":0},{"$f":"VLOOKUP(I29,ComplianceList,2,0)","v":0},{"$f":"VLOOKUP(N29,Scoring!$B$3:$D$9,2,0)","v":2},"Electrical performance requirements"]
["3.2.2.3","Required capacity ranges","See \"Offered Cells\"","Ah","(Select Option)",null,"(Select Option)",null,"(Select Option)",null,{"$f":"VLOOKUP(G30,ComplianceList,2,0)","v":0},{"$f":"VLOOKUP(I30,ComplianceList,2,0)","v":0},{"$f":"VLOOKUP(N30,Scoring!$B$3:$D$9,2,0)","v":2},"Electrical performance requirements"]
["3.2.3","Discharge tables and capacity rating factors",null,null,"XXXXXXXXXXXXXXX","XXXXXXXXXXXXXXX","XXXXXXXXXXXXXXX","XXXXXXXXXXXXXXX","XXXXXXXXXXXXXXX","XXXXXXXXXXXXXXX"]
["3.2.3.1","Discharge tables","Comply with Reference",null,"(Select Option)",null,"(Select Option)",null,"(Select Option)",null,{"$f":"VLOOKUP(G32,ComplianceList,2,0)","v":0},{"$f":"VLOOKUP(I32,ComplianceList,2,0)","v":0},{"$f":"VLOOKUP(N32,Scoring!$B$3:$D$9,2,0)","v":2},"Electrical performance requirements"]
["3.2.3.2","Kt factors","Comply with Reference",null,"(Select Option)",null,"(Select Option)",null,"(Select Option)",null,{"$f":"VLOOKUP(G33,ComplianceList,2,0)","v":0},{"$f":"VLOOKUP(I33,ComplianceList,2,0)","v":0},{"$f":"VLOOKUP(N33,Scoring!$B$3:$D$9,2,0)","v":2},"Electrical performance requirements"]
["3.2.4","Suitability for floating operation",null,null,"XXXXXXXXXXXXXXX","XXXXXXXXXXXXXXX","XXXXXXXXXXXXXXX","XXXXXXXXXXXXXXX","XXXXXXXXXXXXXXX","XXXXXXXXXXXXXXX"]
["3.2.4.1","Fully charged state float parameters at reference temperature:","To be specified at Reference Temperature as per 3.2.2.2",null,"XXXXXXXXXXXXXXX","XXXXXXXXXXXXXXX","XXXXXXXXXXXXXXX","XXXXXXXXXXXXXXX","XXXXXXXXXXXXXXX","XXXXXXXXXXXXXXX"]
[null,"Upper SG limit","Specify with Reference","kg/l","(Select Option)",null,"(Select Option)",null,"(Select Option)",null,{"$f":"VLOOKUP(G36,ComplianceList,2,0)","v":0},{"$f":"VLOOKUP(I36,ComplianceList,2,0)","v":0},{"$f":"VLOOKUP(N36,Scoring!$B$3:$D$9,2,0)","v":2},"Electrical performance requirements"]
[null,"Lower SG Limit","Specify with Reference","kg/l","(Select Option)",null,"(Select Option)",null,"(Select Option)",null,0,0,{"$f":"VLOOKUP(N37,Scoring!$B$3:$D$9,2,0)","v":2},"Electrical performance requirements"]
[null,"Voltage per cell","Specify with Reference","V","(Select Option)",null,"(Select Option)",null,"(Select Option)",null,0,0,{"$f":"VLOOKUP(N38,Scoring!$B$3:$D$9,2,0)","v":2},"Electrical performance requirements"]
["3.2.4.2","Boost charge voltage range per cell","Specify with Reference","V","(Select Option)",null,"(Select Option)",null,"(Select Option)",null,0,0,{"$f":"VLOOKUP(N39,Scoring!$B$3:$D$9,2,0)","v":2},"Electrical performance requirements"]
[null,"Recommended boost charge frequency","Specify with Reference",null,"(Select Option)",null,"(Select Option)",null,"(Select Option)",null,0,0,{"$f":"VLOOKUP(N40,Scoring!$B$3:$D$9,2,0)","v":2},"Electrical performance requirements"]
[null,"Conditions requiring boost charge","Specify with Reference",null,"(Select Option)",null,"(Select Option)",null,"(Select Option)",null,0,0,{"$f":"VLOOKUP(N41,Scoring!$B$3:$D$9,2,0)","v":2},"Electrical performance requirements"]
["3.2.4.3","Equalize charge voltage range per cell","Specify with Reference","V","(Select Option)",null,"(Select Option)",null,"(Select Option)",null,0,0,{"$f":"VLOOKUP(N42,Scoring!$B$3:$D$9,2,0)","v":2},"Electrical performance requirements"]
[null,"Recommended equalize charge frequency","Specify with Reference",null,"(Select Option)",null,"(Select Option)",null,"(Select Option)",null,0,0,{"$f":"VLOOKUP(N43,Scoring!$B$3:$D$9,2,0)","v":2},"Electrical performance requirements"]
[null,"Conditions requiring equalize charge","Specify with Reference",null,"(Select Option)",null,"(Select Option)",null,"(Select Option)",null,0,0,{"$f":"VLOOKUP(N44,Scoring!$B$3:$D$9,2,0)","v":2},"Electrical performance requirements"]
["3.2.4.4","Actual capacity = Rated capacity of 6 months float operation in accordance with SANS 60896-11","Comply with Reference",null,"(Select Option)",null,"(Select Option)",null,"(Select Option)",null,0,0,{"$f":"VLOOKUP(N45,Scoring!$B$3:$D$9,2,0)","v":2},"Electrical performance requirements"]
["3.2.5","Endurance",null,null,"XXXXXXXXXXXXXXX","XXXXXXXXXXXXXXX","XXXXXXXXXXXXXXX","XXXXXXXXXXXXXXX","XXXXXXXXXXXXXXX","XXXXXXXXXXXXXXX"]
["3.2.5.1","Comply with clause 9 of SANS 60896-11","Comply with Reference",null,"(Select Option)",null,"(Select Option)",null,"(Select Option)",null,{"$f":"VLOOKUP(G47,ComplianceList,2,0)","v":0},{"$f":"VLOOKUP(I47,ComplianceList,2,0)","v":0},{"$f":"VLOOKUP(N47,Scoring!$B$3:$D$9,2,0)","v":2},"Electrical performance requirements"]
["3.2.5.2","Expected life under specified conditions: Flat plate (Fauré X) (2 V nominal) ",15,"yrs","(Select Option)",null,"(Select Option)",null,"(Select Option)",null,0,0,{"$f":"VLOOKUP(N48,Scoring!$B$3:$D$9,2,0)","v":2},"Electrical performance requirements"]
["3.2.5.3","Expected end-of-life capacity for flat plate ","0.8C10","Ah","(Select Option)",null,"(Select Option)",null,"(Select Option)",null,0,0,{"$f":"VLOOKUP(N49,Scoring!$B$3:$D$9,2,0)","v":2},"Electrical performance requirements"]
["3.2.5.4","Expected rate of capacity deterioration under specified conditions","Specify with Reference","Ah/yr","(Select Option)",null,"(Select Option)",null,"(Select Option)",null,0,0,{"$f":"VLOOKUP(N50,Scoring!$B$3:$D$9,2,0)","v":2},"Electrical performance requirements"]
["3.2.5.5","Number of cycles to Ca = 0,8C10 for flat plate","Specify with Reference",null,"(Select Option)",null,"(Select Option)",null,"(Select Option)",null,0,0,{"$f":"VLOOKUP(N51,Scoring!$B$3:$D$9,2,0)","v":2},"Electrical performance requirements"]
["3.2.5.7","Endurance in overcharge tested according to clause 17 of SANS 60896-11","Comply with Reference",null,"(Select Option)",null,"(Select Option)",null,"(Select Option)",null,0,0,{"$f":"VLOOKUP(N52,Scoring!$B$3:$D$9,2,0)","v":2},"Electrical performance requirements"]
["3.2.6","Charge retention",null,null,"XXXXXXXXXXXXXXX","XXXXXXXXXXXXXXX","XXXXXXXXXXXXXXX","XXXXXXXXXXXXXXX","XXXXXXXXXXXXXXX","XXXXXXXXXXXXXXX"]
[null,"Obtained charge retention, CR, as a percentage of the initial capacity, Ca according to clause 10 of SANS 60896-11 ","Specify with Reference",null,"(Select Option)",null,"(Select Option)",null,"(Select Option)",null,{"$f":"VLOOKUP(G54,ComplianceList,2,0)","v":0},{"$f":"VLOOKUP(I54,ComplianceList,2,0)","v":0},{"$f":"VLOOKUP(N54,Scoring!$B$3:$D$9,2,0)","v":2},"Electrical performance requirements"]
["3.2.7","Short-circuit current and internal resistance",null,null,"XXXXXXXXXXXXXXX","XXXXXXXXXXXXXXX","XXXXXXXXXXXXXXX","XXXXXXXXXXXXXXX","XXXXXXXXXXXXXXX","XXXXXXXXXXXXXXX"]
["3.2.7.1","Applicable standards","SANS 1632-2: 2005 & SANS 60896-11",null,"(Select Option)",null,"(Select Option)",null,"(Select Option)",null,{"$f":"VLOOKUP(G56,ComplianceList,2,0)","v":0},{"$f":"VLOOKUP(I56,ComplianceList,2,0)","v":0},{"$f":"VLOOKUP(N56,Scoring!$B$3:$D$9,2,0)","v":2},"Electrical performance requirements"]
["3.2.7.2","Value of the short-circuit current, Isc","See \"Offered Cells\"","A","(Select Option)",null,"(Select Option)",null,"(Select Option)",null,{"$f":"VLOOKUP(G57,ComplianceList,2,0)","v":0},{"$f":"VLOOKUP(I57,ComplianceList,2,0)","v":0},{"$f":"VLOOKUP(N57,Scoring!$B$3:$D$9,2,0)","v":2},"Electrical performance requirements"]
["3.2.7.3","Value of the internal resistance, Ri, at the reference temperature of 25 °C at recommended SG and fully charged float voltage","See \"Offered Cells\"","mW","(Select Option)",null,"(Select Option)",null,"(Select Option)",null,{"$f":"VLOOKUP(G58,ComplianceList,2,0)","v":0},{"$f":"VLOOKUP(I58,ComplianceList,2,0)","v":0},{"$f":"VLOOKUP(N58,Scoring!$B$3:$D$9,2,0)","v":2},"Electrical performance requirements"]
["3.2.8","Tolerance to AC components of the DC supply",null,null,"XXXXXXXXXXXXXXX","XXXXXXXXXXXXXXX","XXXXXXXXXXXXXXX","XXXXXXXXXXXXXXX","XXXXXXXXXXXXXXX","XXXXXXXXXXXXXXX"]
["3.2.8.1","Maximum allowable ripple current and the effect thereof on expected battery life","Specify with Reference",null,"(Select Option)",null,"(Select Option)",null,"(Select Option)",null,{"$f":"VLOOKUP(G60,ComplianceList,2,0)","v":0},{"$f":"VLOOKUP(I60,ComplianceList,2,0)","v":0},{"$f":"VLOOKUP(N60,Scoring!$B$3:$D$9,2,0)","v":2},"Electrical performance requirements"]
["3.2.8.2","Effect on expected battery life where ripple is > 5%C10 during float charge and > 20%C10 during boost charge or equalise charge","Specify with Reference",null,"(Select Option)",null,"(Select Option)",null,"(Select Option)",null,{"$f":"VLOOKUP(G61,ComplianceList,2,0)","v":0},{"$f":"VLOOKUP(I61,ComplianceList,2,0)","v":0},{"$f":"VLOOKUP(N61,Scoring!$B$3:$D$9,2,0)","v":2},"Electrical performance requirements"]
["3.2.8.3","Effect on expected battery life where ripple ripple is as specified.","Specify with Reference",null,"(Select Option)",null,"(Select Option)",null,"(Select Option)",null,{"$f":"VLOOKUP(G62,ComplianceList,2,0)","v":0},{"$f":"VLOOKUP(I62,ComplianceList,2,0)","v":0},{"$f":"VLOOKUP(N62,Scoring!$B$3:$D$9,2,0)","v":2},"Electrical performance requirements"]
["3.2.9","Effect of temperature",null,null,"XXXXXXXXXXXXXXX","XXXXXXXXXXXXXXX","XXXXXXXXXXXXXXX","XXXXXXXXXXXXXXX","XXXXXXXXXXXXXXX","XXXXXXXXXXXXXXX"]
["3.2.9.1","Effect of temperature on expected battery life","Specify with Reference",null,"(Select Option)",null,"(Select Option)",null,"(Select Option)",null,{"$f":"VLOOKUP(G64,ComplianceList,2,0)","v":0},{"$f":"VLOOKUP(I64,ComplianceList,2,0)","v":0},{"$f":"VLOOKUP(N64,Scoring!$B$3:$D$9,2,0)","v":2},"Electrical performance requirements"]
["3.2.9.2","Temperature derating factors for the temperature range of -10 °C to +45 °C","Specify on \"Temperature Derating Factors\" worksheet",null,"(Select Option)",null,"(Select Option)",null,"(Select Option)",null,{"$f":"VLOOKUP(G65,ComplianceList,2,0)","v":0},{"$f":"VLOOKUP(I65,ComplianceList,2,0)","v":0},{"$f":"VLOOKUP(N65,Scoring!$B$3:$D$9,2,0)","v":2},"Electrical performance requirements"]
["3.3","MECHANICAL REQUIREMENTS",null,null,"XXXXXXXXXXXXXXX","XXXXXXXXXXXXXXX","XXXXXXXXXXXXXXX","XXXXXXXXXXXXXXX","XXXXXXXXXXXXXXX","XXXXXXXXXXXXXXX"]
["3.3.1","General",null,null,"XXXXXXXXXXXXXXX","XXXXXXXXXXXXXXX","XXXXXXXXXXXXXXX","XXXXXXXXXXXXXXX","XXXXXXXXXXXXXXX","XXXXXXXXXXXXXXX"]
["3.3.1.1","Cell composition","Comply with Reference",null,"(Select Option)","XXXXXXXXXXXXXXX","(Select Option)",null,"(Select Option)",null,{"$f":"VLOOKUP(G68,ComplianceList,2,0)","v":0},{"$f":"VLOOKUP(I68,ComplianceList,2,0)","v":0},{"$f":"VLOOKUP(N68,Scoring!$B$3:$D$9,2,0)","v":3},"Mechanical requirements"]
["3.3.1.2","Resistance to mechanical stresses during normal transportation and handling","As specified",null,"(Select Option)","XXXXXXXXXXXXXXX","(Select Option)",null,"(Select Option)",null,{"$f":"VLOOKUP(G69,ComplianceList,2,0)","v":0},{"$f":"VLOOKUP(I69,ComplianceList,2,0)","v":0},{"$f":"VLOOKUP(N69,Scoring!$B$3:$D$9,2,0)","v":3},"Mechanical requirements"]
["3.3.1.3","Resistance to earthquakes required","No",null,"(Select Option)",null,"(Select Option)",null,"(Select Option)",null,{"$f":"VLOOKUP(G70,ComplianceList,2,0)","v":0},{"$f":"VLOOKUP(I70,ComplianceList,2,0)","v":0},{"$f":"VLOOKUP(N70,Scoring!$B$3:$D$9,2,0)","v":3},"Mechanical requirements"]
["3.3.2","Plates",null,null,"XXXXXXXXXXXXXXX","XXXXXXXXXXXXXXX","XXXXXXXXXXXXXXX","XXXXXXXXXXXXXXX","XXXXXXXXXXXXXXX","XXXXXXXXXXXXXXX"]
["3.3.2.1","Plates construction","Comply with Reference",null,"(Select Option)",null,"(Select Option)",null,"(Select Option)",null,{"$f":"VLOOKUP(G72,ComplianceList,2,0)","v":0},{"$f":"VLOOKUP(I72,ComplianceList,2,0)","v":0},{"$f":"VLOOKUP(N72,Scoring!$B$3:$D$9,2,0)","v":3},"Mechanical requirements"]
["3.3.2.2","Type of alloy","Specify with Reference",null,"(Select Option)",null,"(Select Option)",null,"(Select Option)",null,{"$f":"VLOOKUP(G73,ComplianceList,2,0)","v":0},{"$f":"VLOOKUP(I73,ComplianceList,2,0)","v":0},{"$f":"VLOOKUP(N73,Scoring!$B$3:$D$9,2,0)","v":3},"Mechanical requirements"]
["3.3.2.3","Plates design characteristics","Comply with Reference",null,"(Select Option)",null,"(Select Option)",null,"(Select Option)",null,{"$f":"VLOOKUP(G74,ComplianceList,2,0)","v":0},{"$f":"VLOOKUP(I74,ComplianceList,2,0)","v":0},{"$f":"VLOOKUP(N74,Scoring!$B$3:$D$9,2,0)","v":3},"Mechanical requirements"]
["3.3.3","Seperators","Comply with Reference",null,"(Select Option)",null,"(Select Option)",null,"(Select Option)",null,{"$f":"VLOOKUP(G75,ComplianceList,2,0)","v":0},{"$f":"VLOOKUP(I75,ComplianceList,2,0)","v":0},{"$f":"VLOOKUP(N75,Scoring!$B$3:$D$9,2,0)","v":3},"Mechanical requirements"]
["3.3.4","Group bars","Comply",null,"(Select Option)","XXXXXXXXXXXXXXX","(Select Option)",null,"(Select Option)",null,{"$f":"VLOOKUP(G76,ComplianceList,2,0)","v":0},{"$f":"VLOOKUP(I76,ComplianceList,2,0)","v":0},{"$f":"VLOOKUP(N76,Scoring!$B$3:$D$9,2,0)","v":3},"Mechanical requirements"]
["3.3.5","Terminal posts",null,null,"XXXXXXXXXXXXXXX","XXXXXXXXXXXXXXX","XXXXXXXXXXXXXXX","XXXXXXXXXXXXXXX","XXXXXXXXXXXXXXX","XXXXXXXXXXXXXXX"]
["3.3.5.1 - 3.3.5.3","Terminal posts design","Comply with Reference",null,"(Select Option)",null,"(Select Option)",null,"(Select Option)",null,{"$f":"VLOOKUP(G78,ComplianceList,2,0)","v":0},{"$f":"VLOOKUP(I78,ComplianceList,2,0)","v":0},{"$f":"VLOOKUP(N78,Scoring!$B$3:$D$9,2,0)","v":3},"Mechanical requirements"]
["3.3.5.4","Recommended torque levels for the connections","See \"Offered Cells\"","N.m","(Select Option)",null,"(Select Option)",null,"(Select Option)",{"$nulls":3},{"$f":"VLOOKUP(N79,Scoring!$B$3:$D$9,2,0)","v":3},"Mechanical requirements"]
["3.3.5.5","Terminal posts loading","As specified",null,"(Select Option)",null,"(Select Option)",null,"(Select Option)",null,{"$f":"VLOOKUP(G80,ComplianceList,2,0)","v":0},{"$f":"VLOOKUP(I80,ComplianceList,2,0)","v":0},{"$f":"VLOOKUP(N80,Scoring!$B$3:$D$9,2,0)","v":3},"Mechanical requirements"]
["3.3.6","Terminal seals","Comply with Reference",null,"(Select Option)",null,"(Select Option)",null,"(Select Option)",null,{"$f":"VLOOKUP(G81,ComplianceList,2,0)","v":0},{"$f":"VLOOKUP(I81,ComplianceList,2,0)","v":0},{"$f":"VLOOKUP(N81,Scoring!$B$3:$D$9,2,0)","v":3},"Mechanical requirements"]
["3.3.7","Containers","Comply with Reference",null,"(Select Option)",null,"(Select Option)",null,"(Select Option)",null,{"$f":"VLOOKUP(G82,ComplianceList,2,0)","v":0},{"$f":"VLOOKUP(I82,ComplianceList,2,0)","v":0},{"$f":"VLOOKUP(N82,Scoring!$B$3:$D$9,2,0)","v":3},"Mechanical requirements"]
["3.3.8","Cell lids","Comply with Reference",null,"(Select Option)",null,"(Select Option)",null,"(Select Option)",null,{"$f":"VLOOKUP(G83,ComplianceList,2,0)","v":0},{"$f":"VLOOKUP(I83,ComplianceList,2,0)","v":0},{"$f":"VLOOKUP(N83,Scoring!$B$3:$D$9,2,0)","v":3},"Mechanical requirements"]
["3.3.9","Vent plugs","Comply with Reference",null,"(Select Option)",null,"(Select Option)",null,"(Select Option)",null,{"$f":"VLOOKUP(G84,ComplianceList,2,0)","v":0},{"$f":"VLOOKUP(I84,ComplianceList,2,0)","v":0},{"$f":"VLOOKUP(N84,Scoring!$B$3:$D$9,2,0)","v":3},"Mechanical requirements"]
["3.3.10","Gas recombination units",null,null,"XXXXXXXXXXXXXXX","XXXXXXXXXXXXXXX","XXXXXXXXXXXXXXX","XXXXXXXXXXXXXXX","XXXXXXXXXXXXXXX","XXXXXXXXXXXXXXX"]
["3.3.10.1","Gas recombination unit available","Yes",null,"(Select Option)",null,"(Select Option)",null,"(Select Option)",null,{"$f":"VLOOKUP(G86,ComplianceList,2,0)","v":0},{"$f":"VLOOKUP(I86,ComplianceList,2,0)","v":0},{"$f":"VLOOKUP(N86,Scoring!$B$3:$D$9,2,0)","v":3},"Mechanical requirements"]
["3.3.10.2","Catalyst life expectancy","Comply with Reference",null,"(Select Option)",null,"(Select Option)",null,"(Select Option)",null,{"$f":"VLOOKUP(G87,ComplianceList,2,0)","v":0},{"$f":"VLOOKUP(I87,ComplianceList,2,0)","v":0},{"$f":"VLOOKUP(N87,Scoring!$B$3:$D$9,2,0)","v":3},"Mechanical requirements"]
["3.3.10.3","Catalyst Material Safety Datasheet","Comply with Reference",null,"(Select Option)",null,"(Select Option)",null,"(Select Option)",null,{"$f":"VLOOKUP(G88,ComplianceList,2,0)","v":0},{"$f":"VLOOKUP(I88,ComplianceList,2,0)","v":0},{"$f":"VLOOKUP(N88,Scoring!$B$3:$D$9,2,0)","v":3},"Mechanical requirements"]
["3.3.10.4","Replaceable catalyst & no contamination of cell ","Comply with Reference",null,"(Select Option)",null,"(Select Option)",null,"(Select Option)",null,{"$f":"VLOOKUP(G89,ComplianceList,2,0)","v":0},{"$f":"VLOOKUP(I89,ComplianceList,2,0)","v":0},{"$f":"VLOOKUP(N89,Scoring!$B$3:$D$9,2,0)","v":3},"Mechanical requirements"]
["3.3.10.5","List of approved gas recombination units","Comply with Reference",null,"(Select Option)",null,"(Select Option)",null,"(Select Option)",null,{"$f":"VLOOKUP(G90,ComplianceList,2,0)","v":0},{"$f":"VLOOKUP(I90,ComplianceList,2,0)","v":0},{"$f":"VLOOKUP(N90,Scoring!$B$3:$D$9,2,0)","v":3},"Mechanical requirements"]
["3.3.11","Hydrogen release",null,null,"XXXXXXXXXXXXXXX","XXXXXXXXXXXXXXX","XXXXXXXXXXXXXXX","XXXXXXXXXXXXXXX","XXXXXXXXXXXXXXX","XXXXXXXXXXXXXXX"]
["3.3.11.1","Float charge","Comply with Reference","cm3/h/Ah","(Select Option)",null,"(Select Option)",null,"(Select Option)",null,{"$f":"VLOOKUP(G92,ComplianceList,2,0)","v":0},{"$f":"VLOOKUP(I92,ComplianceList,2,0)","v":0},{"$f":"VLOOKUP(N92,Scoring!$B$3:$D$9,2,0)","v":3},"Mechanical requirements"]
[null,"Boost charge","Comply with Reference","cm3/h/Ah","(Select Option)",null,"(Select Option)",null,"(Select Option)",null,{"$f":"VLOOKUP(G93,ComplianceList,2,0)","v":0},{"$f":"VLOOKUP(I93,ComplianceList,2,0)","v":0},{"$f":"VLOOKUP(N93,Scoring!$B$3:$D$9,2,0)","v":3},"Mechanical requirements"]
[null,"Equalise charge","Comply with Reference","cm3/h/Ah","(Select Option)",null,"(Select Option)",null,"(Select Option)",null,{"$f":"VLOOKUP(G94,ComplianceList,2,0)","v":0},{"$f":"VLOOKUP(I94,ComplianceList,2,0)","v":0},{"$f":"VLOOKUP(N94,Scoring!$B$3:$D$9,2,0)","v":3},"Mechanical requirements"]
["3.3.11.2","Elevated voltage without recombination unit","Comply with Reference","cm3/h/Ah","(Select Option)",null,"(Select Option)",null,"(Select Option)",null,{"$f":"VLOOKUP(G95,ComplianceList,2,0)","v":0},{"$f":"VLOOKUP(I95,ComplianceList,2,0)","v":0},{"$f":"VLOOKUP(N95,Scoring!$B$3:$D$9,2,0)","v":3},"Mechanical requirements"]
[null,"Elevated voltage with recombination unit","Comply with Reference","cm3/h/Ah","(Select Option)",null,"(Select Option)",null,"(Select Option)",null,{"$f":"VLOOKUP(G96,ComplianceList,2,0)","v":0},{"$f":"VLOOKUP(I96,ComplianceList,2,0)","v":0},{"$f":"VLOOKUP(N96,Scoring!$B$3:$D$9,2,0)","v":3},"Mechanical requirements"]
["3.3.12","Electrolyte reserve",null,null,"XXXXXXXXXXXXXXX","XXXXXXXXXXXXXXX","XXXXXXXXXXXXXXX","XXXXXXXXXXXXXXX","XXXXXXXXXXXXXXX","XXXXXXXXXXXXXXX"]
["3.3.12.1","Water consumption over 6 month period","Comply with Reference",null,"(Select Option)",null,"(Select Option)",null,"(Select Option)",null,{"$f":"VLOOKUP(G98,ComplianceList,2,0)","v":0},{"$f":"VLOOKUP(I98,ComplianceList,2,0)","v":0},{"$f":"VLOOKUP(N98,Scoring!$B$3:$D$9,2,0)","v":3},"Mechanical requirements"]
["3.3.12.2","Actual water consumption rate over 6 month period","Comply with Reference",null,"(Select Option)",null,"(Select Option)",null,"(Select Option)",null,0,0,{"$f":"VLOOKUP(N99,Scoring!$B$3:$D$9,2,0)","v":3},"Mechanical requirements"]
["3.3.12.3","Topping-up period with recombination unit","Comply with Reference",null,"(Select Option)",null,"(Select Option)",null,"(Select Option)",null,0,0,{"$f":"VLOOKUP(N100,Scoring!$B$3:$D$9,2,0)","v":3},"Mechanical requirements"]
["3.3.13","Containment of shedded active material","Comply with Reference",null,"(Select Option)",null,"(Select Option)",null,"(Select Option)",null,0,0,{"$f":"VLOOKUP(N101,Scoring!$B$3:$D$9,2,0)","v":3},"Mechanical requirements"]
["3.3.14"," Positive plate growth","Comply with Reference",null,"(Select Option)",null,"(Select Option)",null,"(Select Option)",null,0,0,{"$f":"VLOOKUP(N102,Scoring!$B$3:$D$9,2,0)","v":3},"Mechanical requirements"]
["3.3.15","Cell orientation","Comply",null,"(Select Option)","XXXXXXXXXXXXXXX","(Select Option)",null,"(Select Option)",null,0,0,{"$f":"VLOOKUP(N103,Scoring!$B$3:$D$9,2,0)","v":3},"Mechanical requirements"]
["3.3.16","Cell markings and labelling",null,null,"XXXXXXXXXXXXXXX","XXXXXXXXXXXXXXX","XXXXXXXXXXXXXXX","XXXXXXXXXXXXXXX","XXXXXXXXXXXXXXX","XXXXXXXXXXXXXXX"]
["3.3.16.1","Positive terminal marked - indented or relief","Comply with Reference",null,"(Select Option)",null,"(Select Option)",null,"(Select Option)",null,{"$f":"VLOOKUP(G105,ComplianceList,2,0)","v":0},{"$f":"VLOOKUP(I105,ComplianceList,2,0)","v":0},{"$f":"VLOOKUP(N105,Scoring!$B$3:$D$9,2,0)","v":3},"Mechanical requirements"]
["3.3.16.2","Minimum and maximum levels indicated","Comply with Reference",null,"(Select Option)",null,"(Select Option)",null,"(Select Option)",null,0,0,{"$f":"VLOOKUP(N106,Scoring!$B$3:$D$9,2,0)","v":3},"Mechanical requirements"]
["3.3.16.3","Cell information","Comply with Reference",null,"(Select Option)",null,"(Select Option)",null,"(Select Option)",null,0,0,{"$f":"VLOOKUP(N107,Scoring!$B$3:$D$9,2,0)","v":3},"Mechanical requirements"]
["3.3.16.4","Relevant safety information","Comply with Reference",null,"(Select Option)",null,"(Select Option)",null,"(Select Option)",null,0,0,{"$f":"VLOOKUP(N108,Scoring!$B$3:$D$9,2,0)","v":3},"Mechanical requirements"]
["3.3.16.5","Cell numbers","Comply with Reference",null,"(Select Option)",null,"(Select Option)",null,"(Select Option)",null,0,0,{"$f":"VLOOKUP(N109,Scoring!$B$3:$D$9,2,0)","v":3},"Mechanical requirements"]
["3.3.16.6","Barcode labell on cells","No",null,"(Select Option)",null,"(Select Option)",null,"(Select Option)",null,0,0,{"$f":"VLOOKUP(N110,Scoring!$B$3:$D$9,2,0)","v":3},"Mechanical requirements"]
["3.4","OPERATIONAL REQUIREMENTS",null,null,"XXXXXXXXXXXXXXX","XXXXXXXXXXXXXXX","XXXXXXXXXXXXXXX","XXXXXXXXXXXXXXX","XXXXXXXXXXXXXXX","XXXXXXXXXXXXXXX"]
["3.4.1","Environmental conditions",null,null,"XXXXXXXXXXXXXXX","XXXXXXXXXXXXXXX","XXXXXXXXXXXXXXX","XXXXXXXXXXXXXXX","XXXXXXXXXXXXXXX","XXXXXXXXXXXXXXX"]
["3.4.1.1","Altitude",2200,"m","(Select Option)","XXXXXXXXXXXXXXX","(Select Option)",null,"(Select Option)",null,{"$f":"VLOOKUP(G113,ComplianceList,2,0)","v":0},{"$f":"VLOOKUP(I113,ComplianceList,2,0)","v":0},{"$f":"VLOOKUP(N113,Scoring!$B$3:$D$9,2,0)","v":4},"Operational requirements"]
[null,"Relative humidity (non-condensing)","10 – 85 non-condensing","%","(Select Option)","XXXXXXXXXXXXXXX","(Select Option)",null,"(Select Option)",null,0,0,{"$f":"VLOOKUP(N114,Scoring!$B$3:$D$9,2,0)","v":4},"Operational requirements"]
[null,"Lightning incidence","High",null,"(Select Option)","XXXXXXXXXXXXXXX","(Select Option)",null,"(Select Option)",null,0,0,{"$f":"VLOOKUP(N115,Scoring!$B$3:$D$9,2,0)","v":4},"Operational requirements"]
[null,"Pollution","Low - high with conductive particles when wet",null,"(Select Option)","XXXXXXXXXXXXXXX","(Select Option)",null,"(Select Option)",null,0,0,{"$f":"VLOOKUP(N116,Scoring!$B$3:$D$9,2,0)","v":4},"Operational requirements"]
["3.4.1.2","Outdoor air temperatures:",null,null,"(Select Option)","XXXXXXXXXXXXXXX","(Select Option)",null,"(Select Option)",null,0,0,{"$f":"VLOOKUP(N117,Scoring!$B$3:$D$9,2,0)","v":4},"Operational requirements"]
[null,"Maximum",45,"°C","(Select Option)","XXXXXXXXXXXXXXX","(Select Option)",null,"(Select Option)",null,0,0,{"$f":"VLOOKUP(N118,Scoring!$B$3:$D$9,2,0)","v":4},"Operational requirements"]
[null,"Average",35,"°C","(Select Option)","XXXXXXXXXXXXXXX","(Select Option)",null,"(Select Option)",null,0,0,{"$f":"VLOOKUP(N119,Scoring!$B$3:$D$9,2,0)","v":4},"Operational requirements"]
[null,"Minimum",-10,"°C","(Select Option)","XXXXXXXXXXXXXXX","(Select Option)",null,"(Select Option)",null,0,0,{"$f":"VLOOKUP(N120,Scoring!$B$3:$D$9,2,0)","v":4},"Operational requirements"]
["3.4.1.3","Battery room air temperatures:",null,null,"(Select Option)","XXXXXXXXXXXXXXX","(Select Option)",null,"(Select Option)",null,0,0,{"$f":"VLOOKUP(N121,Scoring!$B$3:$D$9,2,0)","v":4},"Operational requirements"]
[null,"Maximum",40,"°C","(Select Option)","XXXXXXXXXXXXXXX","(Select Option)",null,"(Select Option)",null,0,0,{"$f":"VLOOKUP(N122,Scoring!$B$3:$D$9,2,0)","v":4},"Operational requirements"]
[null,"Daily average",30,"°C","(Select Option)","XXXXXXXXXXXXXXX","(Select Option)",null,"(Select Option)",null,0,0,{"$f":"VLOOKUP(N123,Scoring!$B$3:$D$9,2,0)","v":4},"Operational requirements"]
[null,"Minimum",-5,"°C","(Select Option)","XXXXXXXXXXXXXXX","(Select Option)",null,"(Select Option)",null,0,0,{"$f":"VLOOKUP(N124,Scoring!$B$3:$D$9,2,0)","v":4},"Operational requirements"]
["3.4.2","Application","For Information",null,"XXXXXXXXXXXXXXX","XXXXXXXXXXXXXXX","XXXXXXXXXXXXXXX","XXXXXXXXXXXXXXX","XXXXXXXXXXXXXXX","XXXXXXXXXXXXXXX"]
["3.4.3","Charging regimes",null,null,"XXXXXXXXXXXXXXX","XXXXXXXXXXXXXXX","XXXXXXXXXXXXXXX","XXXXXXXXXXXXXXX","XXXXXXXXXXXXXXX","XXXXXXXXXXXXXXX"]
[null,"Specified charging regimes accepted","Specify with Reference",null,"(Select Option)",null,"(Select Option)",null,"(Select Option)",null,{"$f":"VLOOKUP(G127,ComplianceList,2,0)","v":0},{"$f":"VLOOKUP(I127,ComplianceList,2,0)","v":0},{"$f":"VLOOKUP(N127,Scoring!$B$3:$D$9,2,0)","v":4},"Operational requirements"]
["3.4.4","Commissioning",null,null,"XXXXXXXXXXXXXXX","XXXXXXXXXXXXXXX","XXXXXXXXXXXXXXX","XXXXXXXXXXXXXXX","XXXXXXXXXXXXXXX","XXXXXXXXXXXXXXX"]
[null,"Specified commissioning practices accepted","Specify with Reference",null,"(Select Option)",null,"(Select Option)",null,"(Select Option)",null,{"$f":"VLOOKUP(G129,ComplianceList,2,0)","v":0},{"$f":"VLOOKUP(I129,ComplianceList,2,0)","v":0},{"$f":"VLOOKUP(N129,Scoring!$B$3:$D$9,2,0)","v":4},"Operational requirements"]
["3.4.5","Maintenance",null,null,"XXXXXXXXXXXXXXX","XXXXXXXXXXXXXXX","XXXXXXXXXXXXXXX","XXXXXXXXXXXXXXX","XXXXXXXXXXXXXXX","XXXXXXXXXXXXXXX"]
[null,"Specified maintenance practices accepted","Specify with Reference",null,"(Select Option)",null,"(Select Option)",null,"(Select Option)",null,{"$f":"VLOOKUP(G131,ComplianceList,2,0)","v":0},{"$f":"VLOOKUP(I131,ComplianceList,2,0)","v":0},{"$f":"VLOOKUP(N131,Scoring!$B$3:$D$9,2,0)","v":4},"Operational requirements"]
["3.4.6","Battery water",null,null,"XXXXXXXXXXXXXXX","XXXXXXXXXXXXXXX","XXXXXXXXXXXXXXX","XXXXXXXXXXXXXXX","XXXXXXXXXXXXXXX","XXXXXXXXXXXXXXX"]
["3.4.6.1","Maximum conductivity","Specify","mS/cm","(Select Option)",null,"(Select Option)",null,"(Select Option)",null,{"$f":"VLOOKUP(G133,ComplianceList,2,0)","v":0},{"$f":"VLOOKUP(I133,ComplianceList,2,0)","v":0},{"$f":"VLOOKUP(N133,Scoring!$B$3:$D$9,2,0)","v":4},"Operational requirements"]
["3.4.6.2","List of forbidden substances","Comply with Reference",null,"(Select Option)",null,"(Select Option)",null,"(Select Option)",null,{"$f":"VLOOKUP(G134,ComplianceList,2,0)","v":0},{"$f":"VLOOKUP(I134,ComplianceList,2,0)","v":0},{"$f":"VLOOKUP(N134,Scoring!$B$3:$D$9,2,0)","v":4},"Operational requirements"]
["3.4.7","Accessories",null,null,"XXXXXXXXXXXXXXX","XXXXXXXXXXXXXXX","XXXXXXXXXXXXXXX","XXXXXXXXXXXXXXX","XXXXXXXXXXXXXXX","XXXXXXXXXXXXXXX"]
[null,"Bolts, nuts, washers and connectors","Comply with Reference",null,"(Select Option)",null,"(Select Option)",null,"(Select Option)",null,{"$f":"VLOOKUP(G136,ComplianceList,2,0)","v":0},{"$f":"VLOOKUP(I136,ComplianceList,2,0)","v":0},{"$f":"VLOOKUP(N136,Scoring!$B$3:$D$9,2,0)","v":4},"Operational requirements"]
["3.4.8","Electrolyte","Yes - As specified",null,"(Select Option)",null,"(Select Option)",null,"(Select Option)",null,{"$f":"VLOOKUP(G137,ComplianceList,2,0)","v":0},{"$f":"VLOOKUP(I137,ComplianceList,2,0)","v":0},{"$f":"VLOOKUP(N137,Scoring!$B$3:$D$9,2,0)","v":4},"Operational requirements"]
["3.4.9","Terminating devices and inter-row connectors","Yes - As specified",null,"(Select Option)",null,"(Select Option)",null,"(Select Option)",null,{"$f":"VLOOKUP(G138,ComplianceList,2,0)","v":0},{"$f":"VLOOKUP(I138,ComplianceList,2,0)","v":0},{"$f":"VLOOKUP(N138,Scoring!$B$3:$D$9,2,0)","v":4},"Operational requirements"]
["3.4.10","Equipment Performance",null,null,"XXXXXXXXXXXXXXX","XXXXXXXXXXXXXXX","XXXXXXXXXXXXXXX","XXXXXXXXXXXXXXX","XXXXXXXXXXXXXXX","XXXXXXXXXXXXXXX"]
[null,"Full track record ","Indicate figures on Track Record - Offered Sheet",null,"(Select Option)",null,"(Select Option)",null,"(Select Option)",null,{"$f":"VLOOKUP(G140,ComplianceList,2,0)","v":0},{"$f":"VLOOKUP(I140,ComplianceList,2,0)","v":0},{"$f":"VLOOKUP(N140,Scoring!$B$3:$D$9,2,0)","v":4},"Operational requirements"]
[null,"Equipment hours of installed units / model / type","Yes",{"$nulls":9},{"$f":"VLOOKUP(N141,Scoring!$B$3:$D$9,2,0)","v":4},"Operational requirements"]
[null,"Number of units in the field / model / type","Yes",{"$nulls":9},{"$f":"VLOOKUP(N142,Scoring!$B$3:$D$9,2,0)","v":4},"Operational requirements"]
[null,"Environmental conditions where equipment installed","Yes",{"$nulls":9},{"$f":"VLOOKUP(N143,Scoring!$B$3:$D$9,2,0)","v":4},"Operational requirements"]
[null,"Known problems and / or exceptional performance with the installed units","Comply with Reference",null,"(Select Option)",null,"(Select Option)",null,"(Select Option)",null,{"$f":"VLOOKUP(G144,ComplianceList,2,0)","v":0},{"$f":"VLOOKUP(I144,ComplianceList,2,0)","v":0},{"$f":"VLOOKUP(N144,Scoring!$B$3:$D$9,2,0)","v":4},"Operational requirements"]
["3.4.11","Test certificates, drawings and instruction manuals",null,null,"XXXXXXXXXXXXXXX","XXXXXXXXXXXXXXX","XXXXXXXXXXXXXXX","XXXXXXXXXXXXXXX","XXXXXXXXXXXXXXX","XXXXXXXXXXXXXXX"]
["3.4.11.1","Cell parameters","Yes - As specified",null,"(Select Option)",null,"(Select Option)",null,"(Select Option)",null,{"$f":"VLOOKUP(G146,ComplianceList,2,0)","v":0},{"$f":"VLOOKUP(I146,ComplianceList,2,0)","v":0},{"$f":"VLOOKUP(N146,Scoring!$B$3:$D$9,2,0)","v":4},"Operational requirements"]
["3.4.11.2","Technical manuals with specified cell information","Yes - As specified",null,"(Select Option)",null,"(Select Option)",null,"(Select Option)",null,0,0,{"$f":"VLOOKUP(N147,Scoring!$B$3:$D$9,2,0)","v":4},"Operational requirements"]
[null,"Installation manual","Yes - As specified",null,"(Select Option)",null,"(Select Option)",null,"(Select Option)",null,0,0,{"$f":"VLOOKUP(N148,Scoring!$B$3:$D$9,2,0)","v":4},"Operational requirements"]
[null,"Commissioning manual","Yes - As specified",null,"(Select Option)",null,"(Select Option)",null,"(Select Option)",null,0,0,{"$f":"VLOOKUP(N149,Scoring!$B$3:$D$9,2,0)","v":4},"Operational requirements"]
[null,"Maintenance manual","Yes - As specified",null,"(Select Option)",null,"(Select Option)",null,"(Select Option)",null,0,0,{"$f":"VLOOKUP(N150,Scoring!$B$3:$D$9,2,0)","v":4},"Operational requirements"]
[null,"Safety instructions","Yes - As specified",null,"(Select Option)",null,"(Select Option)",null,"(Select Option)",null,0,0,{"$f":"VLOOKUP(N151,Scoring!$B$3:$D$9,2,0)","v":4},"Operational requirements"]
[null,"Initial charge test results traceable to unique cells","Yes - As specified",null,"(Select Option)",null,"(Select Option)",null,"(Select Option)",null,0,0,{"$f":"VLOOKUP(N152,Scoring!$B$3:$D$9,2,0)","v":4},"Operational requirements"]
[null,"Material Safety Data Sheets available per consignment","Yes - As specified",null,"(Select Option)",null,"(Select Option)",null,"(Select Option)",null,0,0,{"$f":"VLOOKUP(N153,Scoring!$B$3:$D$9,2,0)","v":4},"Operational requirements"]
[null,"Clear storage instructions","Yes - As specified",null,"(Select Option)",null,"(Select Option)",null,"(Select Option)",null,0,0,{"$f":"VLOOKUP(N154,Scoring!$B$3:$D$9,2,0)","v":4},"Operational requirements"]
["3.4.12","Tools",null,null,"XXXXXXXXXXXXXXX","XXXXXXXXXXXXXXX","XXXXXXXXXXXXXXX","XXXXXXXXXXXXXXX","XXXXXXXXXXXXXXX","XXXXXXXXXXXXXXX"]
[null,"Special tools or keys required","Specify",null,"(Select Option)",null,"(Select Option)",null,"(Select Option)",null,{"$f":"VLOOKUP(G156,ComplianceList,2,0)","v":0},{"$f":"VLOOKUP(I156,ComplianceList,2,0)","v":0},{"$f":"VLOOKUP(N156,Scoring!$B$3:$D$9,2,0)","v":4},"Operational requirements"]
["3.4.13","Spares",null,null,"XXXXXXXXXXXXXXX","XXXXXXXXXXXXXXX","XXXXXXXXXXXXXXX","XXXXXXXXXXXXXXX","XXXXXXXXXXXXXXX","XXXXXXXXXXXXXXX"]
[null,"Spares list, spares holding, etc.","Yes - As specified",null,"(Select Option)",null,"(Select Option)",null,"(Select Option)",null,{"$f":"VLOOKUP(G158,ComplianceList,2,0)","v":0},{"$f":"VLOOKUP(I158,ComplianceList,2,0)","v":0},{"$f":"VLOOKUP(N158,Scoring!$B$3:$D$9,2,0)","v":4},"Operational requirements"]
["3.4.14","Training",null,null,"XXXXXXXXXXXXXXX","XXXXXXXXXXXXXXX","XXXXXXXXXXXXXXX","XXXXXXXXXXXXXXX","XXXXXXXXXXXXXXX","XXXXXXXXXXXXXXX"]
[null,"Recommended course structure included","Yes",null,"(Select Option)",null,"(Select Option)",null,"(Select Option)",null,{"$f":"VLOOKUP(G160,ComplianceList,2,0)","v":0},{"$f":"VLOOKUP(I160,ComplianceList,2,0)","v":0},{"$f":"VLOOKUP(N160,Scoring!$B$3:$D$9,2,0)","v":4},"Operational requirements"]
[null,"Who will present the training","Specify",null,"(Select Option)",null,"(Select Option)",null,"(Select Option)",null,{"$f":"VLOOKUP(G161,ComplianceList,2,0)","v":0},{"$f":"VLOOKUP(I161,ComplianceList,2,0)","v":0},{"$f":"VLOOKUP(N161,Scoring!$B$3:$D$9,2,0)","v":4},"Operational requirements"]
[null,"Is there a possibility for training at principal's facilities","Specify",null,"(Select Option)",null,"(Select Option)",null,"(Select Option)",null,{"$f":"VLOOKUP(G162,ComplianceList,2,0)","v":0},{"$f":"VLOOKUP(I162,ComplianceList,2,0)","v":0},{"$f":"VLOOKUP(N162,Scoring!$B$3:$D$9,2,0)","v":4},"Operational requirements"]
[null,"Train-the-trainer type course","Yes",null,"(Select Option)",null,"(Select Option)",null,"(Select Option)",null,{"$f":"VLOOKUP(G163,ComplianceList,2,0)","v":0},{"$f":"VLOOKUP(I163,ComplianceList,2,0)","v":0},{"$f":"VLOOKUP(N163,Scoring!$B$3:$D$9,2,0)","v":4},"Operational requirements"]
["3.4.15","Warranty requirements",null,null,"XXXXXXXXXXXXXXX","XXXXXXXXXXXXXXX","XXXXXXXXXXXXXXX","XXXXXXXXXXXXXXX","XXXXXXXXXXXXXXX","XXXXXXXXXXXXXXX"]
[null,"Two year guarantee","Yes"," ","(Select Option)",null,"(Select Option)",null,"(Select Option)",null,{"$f":"VLOOKUP(G165,ComplianceList,2,0)","v":0},{"$f":"VLOOKUP(I165,ComplianceList,2,0)","v":0},{"$f":"VLOOKUP(N165,Scoring!$B$3:$D$9,2,0)","v":4},"Operational requirements"]
[null,"Alternative warrantees","Specify"," ","(Select Option)",null,"(Select Option)",null,"(Select Option)",null,{"$f":"VLOOKUP(G166,ComplianceList,2,0)","v":0},{"$f":"VLOOKUP(I166,ComplianceList,2,0)","v":0},{"$f":"VLOOKUP(N166,Scoring!$B$3:$D$9,2,0)","v":4},"Operational requirements"]
[null,"OEM endorsed warrantees","Yes",null,"(Select Option)",null,"(Select Option)",null,"(Select Option)",null,{"$f":"VLOOKUP(G167,ComplianceList,2,0)","v":0},{"$f":"VLOOKUP(I167,ComplianceList,2,0)","v":0},{"$f":"VLOOKUP(N167,Scoring!$B$3:$D$9,2,0)","v":4},"Operational requirements"]
["3.4.16","Local support","Yes - As specified",null,"(Select Option)",null,"(Select Option)",null,"(Select Option)",null,{"$f":"VLOOKUP(G168,ComplianceList,2,0)","v":0},{"$f":"VLOOKUP(I168,ComplianceList,2,0)","v":0},{"$f":"VLOOKUP(N168,Scoring!$B$3:$D$9,2,0)","v":4},"Operational requirements"]
["3.4.17","Disposal",null,null,"XXXXXXXXXXXXXXX","XXXXXXXXXXXXXXX","XXXXXXXXXXXXXXX","XXXXXXXXXXXXXXX","XXXXXXXXXXXXXXX","XXXXXXXXXXXXXXX"]
["3.4.17.1","Certificates of enviornmentally friendsly disposal / recycling","Yes",null,"(Select Option)",null,"(Select Option)",null,"(Select Option)",null,{"$f":"VLOOKUP(G170,ComplianceList,2,0)","v":0},{"$f":"VLOOKUP(I170,ComplianceList,2,0)","v":0},{"$f":"VLOOKUP(N170,Scoring!$B$3:$D$9,2,0)","v":4},"Operational requirements"]
["3.4.17.2","Disposal in line with Eskom standard","Yes - As specified",null,"(Select Option)",null,"(Select Option)",null,"(Select Option)",null,{"$f":"VLOOKUP(G171,ComplianceList,2,0)","v":0},{"$f":"VLOOKUP(I171,ComplianceList,2,0)","v":0},{"$f":"VLOOKUP(N171,Scoring!$B$3:$D$9,2,0)","v":4},"Operational requirements"]
["3.4.17.3","Collection of electrolyte and redundant cells from site","As specified",null,"(Select Option)",null,"(Select Option)",null,"(Select Option)",null,{"$f":"VLOOKUP(G172,ComplianceList,2,0)","v":0},{"$f":"VLOOKUP(I172,ComplianceList,2,0)","v":0},{"$f":"VLOOKUP(N172,Scoring!$B$3:$D$9,2,0)","v":4},"Operational requirements"]
["3.4.17.4","Offset of scrap value against transportation costs","As specified",null,"(Select Option)",null,"(Select Option)",null,"(Select Option)",null,{"$f":"VLOOKUP(G173,ComplianceList,2,0)","v":0},{"$f":"VLOOKUP(I173,ComplianceList,2,0)","v":0},{"$f":"VLOOKUP(N173,Scoring!$B$3:$D$9,2,0)","v":4},"Operational requirements"]
["3.4.18","Equipment limitations","Specify with Reference",null,"(Select Option)",null,"(Select Option)",null,"(Select Option)",null,{"$f":"VLOOKUP(G174,ComplianceList,2,0)","v":0},{"$f":"VLOOKUP(I174,ComplianceList,2,0)","v":0},{"$f":"VLOOKUP(N174,Scoring!$B$3:$D$9,2,0)","v":4},"Operational requirements"]
["3.5","ANCILLARY EQUIPMENT",null,null,"XXXXXXXXXXXXXXX","XXXXXXXXXXXXXXX","XXXXXXXXXXXXXXX","XXXXXXXXXXXXXXX","XXXXXXXXXXXXXXX","XXXXXXXXXXXXXXX"]
["3.5.1","Maintenance equipment","See Ancillary Equipment",null,"(Select Option)",null,"(Select Option)",null,"(Select Option)",null,{"$f":"VLOOKUP(G176,ComplianceList,2,0)","v":0},{"$f":"VLOOKUP(I176,ComplianceList,2,0)","v":0},{"$f":"VLOOKUP(N176,Scoring!$B$3:$D$9,2,0)","v":5},"Ancillary equipment"]
["3.5.2","Personal protective equipment","Yes - As specified",null,"(Select Option)",null,"(Select Option)",null,"(Select Option)",null,{"$f":"VLOOKUP(G177,ComplianceList,2,0)","v":0},{"$f":"VLOOKUP(I177,ComplianceList,2,0)","v":0},{"$f":"VLOOKUP(N177,Scoring!$B$3:$D$9,2,0)","v":5},"Ancillary equipment"]
["3.5.3","Maintenance equipment and PPE rack / cabinet / box","Yes - As specified",null,"(Select Option)",null,"(Select Option)",null,"(Select Option)",null,{"$f":"VLOOKUP(G178,ComplianceList,2,0)","v":0},{"$f":"VLOOKUP(I178,ComplianceList,2,0)","v":0},{"$f":"VLOOKUP(N178,Scoring!$B$3:$D$9,2,0)","v":5},"Ancillary equipment"]
["3.5.4","Battery stands","Comply with Reference (Sample drawings)",null,"(Select Option)",null,"(Select Option)",null,"(Select Option)",null,{"$f":"VLOOKUP(G179,ComplianceList,2,0)","v":0},{"$f":"VLOOKUP(I179,ComplianceList,2,0)","v":0},{"$f":"VLOOKUP(N179,Scoring!$B$3:$D$9,2,0)","v":5},"Ancillary equipment"]
["3.5.5","Safety signs","See Ancillary Equipment",null,"(Select Option)",null,"(Select Option)",null,"(Select Option)",null,{"$f":"VLOOKUP(G180,ComplianceList,2,0)","v":0},{"$f":"VLOOKUP(I180,ComplianceList,2,0)","v":0},{"$f":"VLOOKUP(N180,Scoring!$B$3:$D$9,2,0)","v":5},"Ancillary equipment"]
[3.6,"Tests",null,null,"XXXXXXXXXXXXXXX","XXXXXXXXXXXXXXX","XXXXXXXXXXXXXXX","XXXXXXXXXXXXXXX","XXXXXXXXXXXXXXX","XXXXXXXXXXXXXXX"]
["3.6.1","General","Comply with Reference",null,"(Select Option)",null,"(Select Option)",null,"(Select Option)",null,{"$f":"VLOOKUP(G182,ComplianceList,2,0)","v":0},{"$f":"VLOOKUP(I182,ComplianceList,2,0)","v":0},{"$f":"VLOOKUP(N182,Scoring!$B$3:$D$9,2,0)","v":6},"Tests"]
["3.6.2","Electrical and mechanical tests","Details to be provided on Type Testing Sheet",null,"(Select Option)",null,"(Select Option)",null,"(Select Option)",null,{"$f":"VLOOKUP(G183,ComplianceList,2,0)","v":0},{"$f":"VLOOKUP(I183,ComplianceList,2,0)","v":0},{"$f":"VLOOKUP(N183,Scoring!$B$3:$D$9,2,0)","v":6},"Tests"]
["3.6.3","Initial charge tests","As specified",null,"(Select Option)",null,"(Select Option)",null,"(Select Option)",null,{"$f":"VLOOKUP(G184,ComplianceList,2,0)","v":0},{"$f":"VLOOKUP(I184,ComplianceList,2,0)","v":0},{"$f":"VLOOKUP(N184,Scoring!$B$3:$D$9,2,0)","v":6},"Tests"]
["3.6.4","Clearance for dispatch","As specified",null,"(Select Option)",null,"(Select Option)",null,"(Select Option)",null,{"$f":"VLOOKUP(G185,ComplianceList,2,0)","v":0},{"$f":"VLOOKUP(I185,ComplianceList,2,0)","v":0},{"$f":"VLOOKUP(N185,Scoring!$B$3:$D$9,2,0)","v":6},"Tests"]
[3.7,"PACKAGING, LABELLING AND TRANSPORT ",null,null,"XXXXXXXXXXXXXXX","XXXXXXXXXXXXXXX","XXXXXXXXXXXXXXX","XXXXXXXXXXXXXXX","XXXXXXXXXXXXXXX","XXXXXXXXXXXXXXX"]
["3.7.1","Packaging","As specified",null,"(Select Option)",null,"(Select Option)",null,"(Select Option)",null,{"$f":"VLOOKUP(G187,ComplianceList,2,0)","v":0},{"$f":"VLOOKUP(I187,ComplianceList,2,0)","v":0},{"$f":"VLOOKUP(N187,Scoring!$B$3:$D$9,2,0)","v":7},"Packaging, labelling, marking and transport"]
["3.7.2","Labelling","As specified",null,"(Select Option)",null,"(Select Option)",null,"(Select Option)",null,{"$f":"VLOOKUP(G188,ComplianceList,2,0)","v":0},{"$f":"VLOOKUP(I188,ComplianceList,2,0)","v":0},{"$f":"VLOOKUP(N188,Scoring!$B$3:$D$9,2,0)","v":7},"Packaging, labelling, marking and transport"]
["3.7.3","Transport","As specified",null,"(Select Option)",null,"(Select Option)",null,"(Select Option)",null,{"$f":"VLOOKUP(G189,ComplianceList,2,0)","v":0},{"$f":"VLOOKUP(I189,ComplianceList,2,0)","v":0},{"$f":"VLOOKUP(N189,Scoring!$B$3:$D$9,2,0)","v":7},"Packaging, labelling, marking and transport"]

{"sheet":"Scoring","index":6,"n_rows":10,"n_cols":8,"rows_kept":10,"hidden":true,"merged":[[0,0,1,0],[0,1,1,1],[0,2,1,2],[0,3,1,3],[0,4,0,7]]}
["#","Qualitative Technical Criteria Description","#","Weight","Flat Plate"]
[{"$nulls":4},"S1","S2","WS1","WS2"]
[1,"General requirements",1,{"v":0.1,"d":"10%"},{"$f":"SUMIF('03-Technical Schedules'!$M$9:$M$189,Scoring!$C3,'03-Technical Schedules'!$K$9:$K$189)/(COUNTIF('03-Technical Schedules'!$M$9:$M$189,Scoring!$C3)*5)","v":{"v":0,"d":"0%"}},{"$f":"SUMIF('03-Technical Schedules'!$M$9:$M$189,Scoring!$C3,'03-Technical Schedules'!$L$9:$L$189)/(COUNTIF('03-Technical Schedules'!$M$9:$M$189,Scoring!$C3)*5)","v":{"v":0,"d":"0%"}},{"$f":"$D3*E3","v":{"v":0,"d":"0%"}},{"$f":"$D3*F3","v":{"v":0,"d":"0%"}}]
[2,"Electrical performance requirements",2,{"v":0.25,"d":"25%"},{"$f":"SUMIF('03-Technical Schedules'!$M$9:$M$189,Scoring!$C4,'03-Technical Schedules'!$K$9:$K$189)/(COUNTIF('03-Technical Schedules'!$M$9:$M$189,Scoring!$C4)*5)","v":{"v":0,"d":"0%"}},{"$f":"SUMIF('03-Technical Schedules'!$M$9:$M$189,Scoring!$C4,'03-Technical Schedules'!$L$9:$L$189)/(COUNTIF('03-Technical Schedules'!$M$9:$M$189,Scoring!$C4)*5)","v":{"v":0,"d":"0%"}},{"v":0,"d":"0%"},{"v":0,"d":"0%"}]
[3,"Mechanical requirements",3,{"v":0.1,"d":"10%"},{"$f":"SUMIF('03-Technical Schedules'!$M$9:$M$189,Scoring!$C5,'03-Technical Schedules'!$K$9:$K$189)/(COUNTIF('03-Technical Schedules'!$M$9:$M$189,Scoring!$C5)*5)","v":{"v":0,"d":"0%"}},{"$f":"SUMIF('03-Technical Schedules'!$M$9:$M$189,Scoring!$C5,'03-Technical Schedules'!$L$9:$L$189)/(COUNTIF('03-Technical Schedules'!$M$9:$M$189,Scoring!$C5)*5)","v":{"v":0,"d":"0%"}},{"v":0,"d":"0%"},{"v":0,"d":"0%"}]
[4,"Operational requirements",4,{"v":0.15,"d":"15%"},{"$f":"SUMIF('03-Technical Schedules'!$M$9:$M$189,Scoring!$C6,'03-Technical Schedules'!$K$9:$K$189)/(COUNTIF('03-Technical Schedules'!$M$9:$M$189,Scoring!$C6)*5)","v":{"v":0,"d":"0%"}},{"$f":"SUMIF('03-Technical Schedules'!$M$9:$M$189,Scoring!$C6,'03-Technical Schedules'!$L$9:$L$189)/(COUNTIF('03-Technical Schedules'!$M$9:$M$189,Scoring!$C6)*5)","v":{"v":0,"d":"0%"}},{"v":0,"d":"0%"},{"v":0,"d":"0%"}]
[5,"Ancillary equipment",5,{"v":0.1,"d":"10%"},{"$f":"SUMIF('03-Technical Schedules'!$M$9:$M$189,Scoring!$C7,'03-Technical Schedules'!$K$9:$K$189)/(COUNTIF('03-Technical Schedules'!$M$9:$M$189,Scoring!$C7)*5)","v":{"v":0,"d":"0%"}},{"$f":"SUMIF('03-Technical Schedules'!$M$9:$M$189,Scoring!$C7,'03-Technical Schedules'!$L$9:$L$189)/(COUNTIF('03-Technical Schedules'!$M$9:$M$189,Scoring!$C7)*5)","v":{"v":0,"d":"0%"}},{"v":0,"d":"0%"},{"v":0,"d":"0%"}]
[6,"Tests",6,{"v":0.2,"d":"20%"},{"$f":"SUMIF('03-Technical Schedules'!$M$9:$M$189,Scoring!$C8,'03-Technical Schedules'!$K$9:$K$189)/(COUNTIF('03-Technical Schedules'!$M$9:$M$189,Scoring!$C8)*5)","v":{"v":0,"d":"0%"}},{"$f":"SUMIF('03-Technical Schedules'!$M$9:$M$189,Scoring!$C8,'03-Technical Schedules'!$L$9:$L$189)/(COUNTIF('03-Technical Schedules'!$M$9:$M$189,Scoring!$C8)*5)","v":{"v":0,"d":"0%"}},{"v":0,"d":"0%"},{"v":0,"d":"0%"}]
[7,"Packaging, labelling, marking and transport",7,{"v":0.1,"d":"10%"},{"$f":"SUMIF('03-Technical Schedules'!$M$9:$M$189,Scoring!$C9,'03-Technical Schedules'!$K$9:$K$189)/(COUNTIF('03-Technical Schedules'!$M$9:$M$189,Scoring!$C9)*5)","v":{"v":0,"d":"0%"}},{"$f":"SUMIF('03-Technical Schedules'!$M$9:$M$189,Scoring!$C9,'03-Technical Schedules'!$L$9:$L$189)/(COUNTIF('03-Technical Schedules'!$M$9:$M$189,Scoring!$C9)*5)","v":{"v":0,"d":"0%"}},{"v":0,"d":"0%"},{"v":0,"d":"0%"}]
[{"$nulls":3},{"$f":"SUM(D3:D9)","v":{"v":0.9999999999999999,"d":"100%"}}]

{"sheet":"Lists","index":7,"n_rows":22,"n_cols":2,"rows_kept":22,"hidden":true}
["(Select Option)",0]
["Comply",5]
["Partially Comply",4]
["Do Not Comply",2]
[]
["(Select Option)",0]
["Certificate",2]
["Test Report",2]
["Certificate & Test Report",5]
["Not Available",2]
[]
["Cell Configuration Options:"]
["(Select Option)"]
["Single Cells"]
["Multicell Blocks"]
["Single Cells & Multicell Blocks"]
[]
["(Select Option)"]
["Pocket"]
["Fibre"]
["Sintered/Plastic Bonded Electrode"]
["Other"]

{"sheet":"04-Offered Cells","index":8,"n_rows":29,"n_cols":15,"rows_kept":29,"merged":[[1,0,2,0],[1,1,1,14]]}
[{"$f":"\"C10 Capacity @ 25°C to Veod = \"&'[2]Technical Schedules'!C29&\"V/cell\"","v":"C10 Capacity @ 25°C to Veod = 1.80V/cell"}]
["Required Capacity [Ah]","Vented Flat Plate"]
[null,"Offered Capacity [Ah]","Cell Model No.","Short Circuit Current [A]","Internal Resistance [mW]","Recommended Torque Levels for Connections [N.m]","Terminating Devices Code 1)","Intercell Connectors Code","Interrow Connectors Code 2)","Electrolyte Volume to Max Level [l]","Electrolyte Volume to Min Level [l]","Cell Dimensions  - LxWxH [mm]","Dry Cell Weight [kg]","Wet Cell Weight [kg]","Lead Content [kg]"]
[50]
[100]
[150]
[200]
[250]
[300]
[350]
[400]
[450]
[500]
[550]
[600]
[650]
[700]
[800]
[900]
[1000]
[1100]
[1200]
[1300]
[1400]
[1500]
[]
["Notes:"]
["1) The terminating devices configuration may be different depending on the stand confguration. Therefore the code should signify a stand configuration e.g. 123-A where A stands for Double Row Single Tier, etc."]
["2) The interrow connectors configuration may be different depending on the stand confguration. Therefore the code should signify a stand configuration e.g. 123-A where A stands for Double Row Single Tier, etc."]

{"sheet":"05-Temp Derating Factors","index":9,"n_rows":20,"n_cols":4,"rows_kept":20,"merged":[[4,1,4,3],[5,0,6,0],[19,1,19,3]]}
["Temperature Derating Factors"]
["Note: The discharge rate time period (e.g. 10 - 12 hrs for slow rate) shall be indicate in the space provided"]
["Also indicate the Filename and page number where the requested information may be found in the technical brochures."]
[]
[null,{"$f":"'04-Offered Cells'!B2","v":"Vented Flat Plate"}]
["Temperature [°C]","Slow rate","Med rate","High rate"]
[null,"10-12 h"]
[-5]
[0]
[5]
[10]
[15]
[20]
[25]
[30]
[35]
[40]
[45]
[50]
["Reference"]

{"sheet":"06-Ancillary Equipment","index":10,"n_rows":41,"n_cols":13,"rows_kept":41,"merged":[[0,0,0,1],[37,1,37,3],[40,1,40,3]]}
["List of Accessories",{"$nulls":11},"Y"]
[null,null,"Available [Y/N]","Comments",{"$nulls":8},"N"]
[1,"Jug"]
[2,"Funnel"]
[3,"Anti-corrosion lubricant (at least 250ml)"]
[4,"Glass Hydrometer 1)"]
[5,"Glass Thermometer 1)"]
[6,"Electronic Hydrometer 1)"]
[7,"Electronic Thermometer 1)"]
[8,"Maintenance & safety equipment board / rack"]
[9,"Lead acid battery logbook 2)"]
[10,"Battery stand touch-up paint (500ml)"]
[11,"Battery stand touch-up paint (1000ml)"]
[12,"Paint brush - 50mm wide"]
[13,"Battery room safety sign, DCSS1 3)"]
[14,"Eyewash bottle - sealed"]
[15,"Faceshield 4)"]
[16,"Pack of disposable nitrile gloves (at least 50 units)"]
[17,"Pack of paper towels"]
[18,"Acid resistant apron - white 4)"]
[19,"Maintenance & safety equipment kit (analogue) 5)"]
[20,"Stainless steel nuts and bolts"]
[21,"Stainless steel flat washers"]
[22,"Stainless steel spring washers"]
[23,"Electrolyte (25l)"]
[24,"Polycan (25l)"]
[25,"Combined Battery Room Sign, DCSS 3  3)"]
[26,"Emergency Shower Sign, GA 20  3)"]
[27,"Eyewash Sign, GA 19  3)"]
[28,"Drinking of water prohibited Sign, PV 5  3)"]
[29,"Battery Room safety sign, DCSS 4 3)"]
[30,"Portable Emergency Shower (Camping type)"]
[31]
[32]
[]
[null,"Notes:"]
[null,"1) Shall comply with 240-56360034, Rev 3, Stationary vented lead acid batteries standard"]
[null,"2) Shall comply with 240-56360034, Rev 3, Stationary vented lead acid batteries standard\n"]
[null,"3) Shall comply with 240-53114264, Specification for safety signs used in DC applications"]
[null,"4) Shall comply with 240-56176215, DC Technician Tools, Test Equipment and Accessories Standard."]
[null,"5) The Maintenance & safety equipment kit (analogue) shall be in a black plastic box (as shown in the photo) with a removable top tray and cover. It shall contain the items 1, 2, 3, 4, 5, 9, 14, 15, 16, 17 and 18."]

{"sheet":"Photos","index":11,"n_rows":1,"n_cols":10,"rows_kept":1}
["MAINTENANCE & SAFETY EQUIPMENT BOARD",{"$nulls":8},"MAINTENANCE & SAFETY EQUIPMENT KIT"]

{"sheet":"07-Track Record","index":12,"n_rows":74,"n_cols":3,"rows_kept":74,"merged":[[2,1,2,5],[3,1,3,5],[4,1,4,5],[5,1,5,5],[6,1,6,5],[9,2,9,5],[10,2,10,5],[12,2,12,5],[13,0,14,0],[15,0,16,0],[23,2,23,5],[25,2,25,5],[26,2,26,5],[28,2,28,5],[29,0,30,0],[31,0,32,0],[39,2,39,5],[41,2,41,5],[42,2,42,5],[44,2,44,5],[45,0,46,0],[47,0,48,0],[55,2,55,5],[57,2,57,5],[58,2,58,5],[60,2,60,5],[61,0,62,0],[63,0,64,0],[71,2,71,5],[73,2,73,5],[74,2,74,5],[75,2,75,5],[76,2,76,5],[77,2,77,5],[78,2,78,5],[79,2,79,5],[80,2,80,5],[81,2,81,5],[82,2,82,5],[83,2,83,5],[84,2,84,5],[85,2,85,5],[86,2,86,5]]}
[null,"Instruction to complete the Track Record for Offered Cells"]
[null,"Note: The track record provided shall be exclusively for the equipment offered."]
[null,"1) First list countries with similar climatic conditions as South Africa."]
[null,"2) Then list any other countries for which you have information."]
[null,"3) To make the list not too exhaustive, you may in addition to the track records provided for the four countries make mention of other countries and mention the references in the space provided."]
[null,"4) The track record provided shall be exclusively for the equipment offered."]
[null,"5) Any other relevant references that will aid in forming an idea of the track record of the company as a battery supplier can be entered under Section E Other References."]
[]
[null,"Track Record of the Equipment on Offer"]
[null,"Reference - FileName or Document Title"]
[null,"Cell Type",{"$f":"'04-Offered Cells'!B2","v":"Vented Flat Plate"}]
[null,"Model number"]
["A","Country 1:","SOUTH AFRICA"]
[1,"Oldest installation (Insert Customer/Site Name)"]
[null,"Date of installation"]
[2,"Most recent installation (Insert Customer/Site Name)"]
[null,"Date of installation"]
[3,"Number of units installed in a controlled environment"]
[4,"Number of units installed in an uncontrolled environment"]
[5,"Number of failures in a controlled environment"]
[6,"Number of failures in an uncontrolled environment"]
[7,"Number of units installed in electricity utility industry"]
[8,"Number of units installed in other industries"]
[9,"List your major customers in this country:"]
[]
[null,"Reference - FileName or Document Title"]
[null,"Cell Type",{"$f":"C11","v":"Vented Flat Plate"}]
[null,"Model number"]
["B","Country 2:"]
[1,"Oldest installation (Insert Customer/Site Name)"]
[null,"Date of installation"]
[2,"Most recent installation (Insert Customer/Site Name)"]
[null,"Date of installation"]
[3,"Number of units installed in a controlled environment"]
[4,"Number of units installed in an uncontrolled environment"]
[5,"Number of failures in a controlled environment"]
[6,"Number of failures in an uncontrolled environment"]
[7,"Number of units installed in electricity utility industry"]
[8,"Number of units installed in other industries"]
[9,"List your major customers in this country:"]
[]
[null,"Reference - FileName or Document Title"]
[null,"Cell Type",{"$f":"C27","v":"Vented Flat Plate"}]
[null,"Model number"]
["C","Country 3:"]
[1,"Oldest installation (Insert Customer/Site Name)"]
[null,"Date of installation"]
[2,"Most recent installation (Insert Customer/Site Name)"]
[null,"Date of installation"]
[3,"Number of units installed in a controlled environment"]
[4,"Number of units installed in an uncontrolled environment"]
[5,"Number of failures in a controlled environment"]
[6,"Number of failures in an uncontrolled environment"]
[7,"Number of units installed in electricity utility industry"]
[8,"Number of units installed in other industries"]
[9,"List your major customers in this country:"]
[]
[null,"Reference - FileName or Document Title"]
[null,"Cell Type",{"$f":"C43","v":"Vented Flat Plate"}]
[null,"Model number"]
["D","Country 4:"]
[1,"Oldest installation (Insert Customer/Site Name)"]
[null,"Date of installation"]
[2,"Most recent installation (Insert Customer/Site Name)"]
[null,"Date of installation"]
[3,"Number of units installed in a controlled environment"]
[4,"Number of units installed in an uncontrolled environment"]
[5,"Number of failures in a controlled environment"]
[6,"Number of failures in an uncontrolled environment"]
[7,"Number of units installed in electricity utility industry"]
[8,"Number of units installed in other industries"]
[9,"List your major customers in this country:"]
[]
["E","Other References"]

{"sheet":"08-Type Testing","index":13,"n_rows":11,"n_cols":8,"rows_kept":11,"merged":[[2,0,3,0],[2,1,3,1],[2,2,3,2],[2,3,3,3],[2,4,3,4],[2,6,3,6],[2,7,3,7]]}
["Type Tests Results for Offered Cells"]
[]
["Item","Test","Standard","Clause","Required Performance Criteria","Obtained Performance","Test Certficates Provided [Y/N]","References"]
[{"$nulls":5},"Flat Plate"]
[1,"Capacity Test @ 25°C","SANS 60896-11-2003",14,"PASS: Clause 14.10","(Select Option)","(Select Option)"]
[2,"Suitability for floating battery operation test","SANS 60896-11-2003",15,"PASS: Clause 8.2 a) - d)","(Select Option)","(Select Option)"]
[3,"Endurance discharge cycle test","SANS 60896-11-2003",16,"PASS: Clause 9.1","(Select Option)","(Select Option)"]
[4,"Endurance test in overcharge","SANS 60896-11-2003",17,"PASS: Clause 9.2","(Select Option)","(Select Option)"]
[5,"Charge retention test","SANS 60896-11-2003",18,"Specify obtained results","(Select Option)","(Select Option)"]
[6,"Internal resistance test","SANS 60896-11-2003",19,"Tested","(Select Option)","(Select Option)"]
[7,"Short-circuit current test","SANS 60896-11-2003",19,"Tested","(Select Option)","(Select Option)"]

{"sheet":"09-Customer Details","index":14,"n_rows":33,"n_cols":7,"rows_kept":33,"merged":[[0,1,0,6]]}
[null,"CUSTOMER DETAILS - Contactable References"]
[]
[null,"Company Name","Contact Person","Country","Email","Telephone","Mobile"]
[1]
[2]
[3]
[4]
[5]
[6]
[7]
[8]
[9]
[10]
[11]
[12]
[13]
[14]
[15]
[16]
[17]
[18]
[19]
[20]
[21]
[22]
[23]
[24]
[25]
[26]
[27]
[28]
[29]
[30]

{"sheet":"10-Overall Deviation List","index":15,"n_rows":64,"n_cols":5,"rows_kept":64,"merged":[[0,0,0,4],[1,0,1,4],[2,0,2,4],[3,0,3,4],[4,0,4,4],[5,0,5,4],[6,0,6,4],[7,0,7,4]]}
[{"$f":"Index!A1","v":"VENTED LEAD ACID BATTERIES DISTRIBUTION NATIONAL CONTRACT"}]
[{"$f":"IF('[3]Worksheets Index'!C2=\"\",\"\",'[3]Worksheets Index'!C2)","v":""}]
["Click here to go back to \"Worksheets Index\""]
["DEVIATIONS LIST"]
["Any deviations from this specification shall be listed below with reasons for deviation.  In addition, evidence shall be provided that the proposed deviation will meet the minimum requirements and at least be more cost effective than that specified by Eskom."]
["The \"Clause #\" shall be the applicable Clause number from the applicable referenced document."]
["\"Clause\" refers to the applicable clause from the applicable reference document."]
["Details of the Deviation shall be provided - Document reference number, title, clause number and clause text shall be provided in cases where the deviation is applicable."]
["Item #","Document Reference #","Document Title","Clause #","Proposed Deviation"]
[1]
[2]
[3]
[4]
[5]
[6]
[7]
[8]
[9]
[10]
[11]
[12]
[13]
[14]
[15]
[16]
[17]
[18]
[19]
[20]
[21]
[22]
[23]
[24]
[25]
[26]
[27]
[28]
[29]
[30]
[31]
[32]
[33]
[34]
[35]
[36]
[37]
[38]
[39]
[40]
[41]
[42]
[43]
[44]
[45]
[46]
[47]
[48]
[49]
[50]
[51]
[52]
[53]
[54]
[55]